Cogmind - Beta 16 @@@ ROGUE MODE // 2025.12.11 @ 23:39:31 Player: Spoodle Result: Destroyed by H-71 Marshal with Heavy Mass Driver Performance ------------- Evolutions (5) 2500 Regions Visited (12) 2400 Robots Destroyed (155) 775 Value Destroyed (4089) 4089 Prototype IDs (32) 640 Alien Tech Used (0) 0 Bonus (2941) 2941 TOTAL SCORE: 13345 Bonus ------- High Alert Combat Kills 161 Follower Combat Kills 1881 Network Hubs Disabled 200 Built Enhanced Grunts 300 A7 Reached Mainframe 300 Met R17 at Cetus 500 Friendly Fire -401 Cogmind --------- Core Integrity 0/1000 Matter 295/300 Energy 88/100 System Corruption 1% Temperature Cool (0) Movement Core (50) Location -5/Hub_04(d) Parts ------- > --- POWER (2) -------- (None) > --- PROPULSION (6) --- (None) > --- UTILITY (7) ------ (None) > --- WEAPON (2) ------- (None) > --- INVENTORY (5) ---- Quantum Reactor Improved Hacking Suite Neutron Cannon Improved Plasma Cutter Impact Mace Peak State ------------ > --- POWER ------------ Light Angular Momentum Engine Quantum Reactor > --- PROPULSION ------- Gravmag System Gravmag System Gravmag System Gravmag System Linear Gravjet Cooled VTOL Module > --- UTILITY ---------- Medium Storage Unit Advanced Sensor Array Cloaking Device Centrium Medium Armor Plating Improved Hacking Suite Improved Hacking Suite Improved System Shield > --- WEAPON ----------- Advanced Datajack Ripper > --- INVENTORY -------- Particle Reactor Enhanced Flexi-carbon Leg Cooled VTOL Module Advanced Heat Sink ECM Suite Improved Hacking Suite Neutron Cannon Improved Plasma Cutter Impact Mace [Rating: 91] Favorites ----------- Power Ion Engine Engine Ion Engine Power Core Nuclear Core Reactor Particle Reactor Propulsion Light Treads Treads Light Treads Leg Aluminum Leg Hover Unit Gravmag System Flight Unit Improved VTOL Module Utility Large Storage Unit Device Seismic Detector Storage Large Storage Unit Processor Targeting Computer Hackware Hacking Suite Protection Improved Utility Shielding Weapon Light Cannon Energy Gun Advanced Beam Rifle Energy Cannon Heavy Phase Cannon Ballistic Gun Improved Assault Rifle Ballistic Cannon Light Cannon Launcher Long-range Missile Launcher Special Weapon Mining Laser Impact Weapon Impact Mace Slashing Weapon Ripper Special Melee Weapon Datajack Build | -11 -10 -10 -10 -9 -8 -7 -6 -5 -5 -5 -5 -5 ------- Run | Yrd Mat Min Exi Min Mat Fac Fac Fac Ext Cet Arc Hub Slots Evolved 10 | . . . . . 4 2 2 2 . . . . Power 1 | . . . . . . . . 1 . . . . Propulsion 4 | . . . . . 2 . 1 1 . . . . Utility 5 | . . . . . 2 2 1 . . . . . Weapon . | . . . . . . . . . . . . . Parts Attached 118 | 7 14 . 1 . 41 7 4 8 15 3 16 2 Power 17 | 1 3 . . . 5 . . 2 2 . 2 2 Engine 9 | 1 3 . . . 2 . . 1 . . . 2 Core 6 | . . . . . 3 . . 1 2 . . . Reactor 2 | . . . . . . . . . . . 2 . Propulsion 36 | 2 2 . . . 17 1 1 4 2 1 6 . Treads 16 | . 2 . . . 13 . . . . . 1 . Leg 3 | 2 . . . . . . . . . . 1 . Wheel . | . . . . . . . . . . . . . Hover 8 | . . . . . . . 1 2 . 1 4 . Flight 9 | . . . . . 4 1 . 2 2 . . . Utility 36 | 2 3 . . . 11 5 2 . 6 1 6 . Device 16 | 1 . . . . 5 2 1 . 4 . 3 . Storage 4 | 1 2 . . . . 1 . . . . . . Processor 2 | . 1 . . . 1 . . . . . . . Hackware 7 | . . . . . 1 2 1 . . . 3 . Protection 7 | . . . . . 4 . . . 2 1 . . Artifact . | . . . . . . . . . . . . . Weapon 29 | 2 6 . 1 . 8 1 1 2 5 1 2 . Energy Gun 4 | 1 1 . . . 2 . . . . . . . Energy Cannon 2 | . . . . . . . . 1 . . 1 . Ballistic Gun 8 | 1 . . . . 5 . 1 . 1 . . . Ballistic Cannon 4 | . 3 . . . 1 . . . . . . . Launcher 2 | . 1 . . . . . . . 1 . . . Special Weapon 2 | . 1 . . . . . . . . 1 . . Impact Weapon 1 | . . . . . . . . 1 . . . . Slashing Weapon 4 | . . . . . . 1 . . 3 . . . Piercing Weapon . | . . . . . . . . . . . . . Special Melee Weapon 2 | . . . 1 . . . . . . . 1 . Unidentified Prototypes 10 | . . . . . 5 1 1 . . 1 2 . Corrupted Parts 1 | . . . . . . . . . . . 1 . System Corruption 3 | . . . . . . . . . . . 3 . Parts Lost 22 | . . . . . 3 . . . 8 6 . 5 Power 4 | . . . . . . . . . 3 1 . . Propulsion 4 | . . . . . . . . . . 1 . 3 Utility 10 | . . . . . 2 . . . 4 3 . 1 Weapon 4 | . . . . . 1 . . . 1 1 . 1 Highest Loss Streak 6 | . . . . . 1 . . . 3 6 . 5 To Critical Strikes . | . . . . . . . . . . . . . Average Backups 11 | 5 10 15 15 15 14 6 9 10 9 9 7 9 Power 1 | . 1 1 1 1 1 1 1 . . . 1 1 Propulsion 2 | 1 2 2 3 3 4 . . . 1 . 1 2 Utility 3 | 1 2 5 5 5 3 2 5 4 3 4 3 3 Weapon 4 | 1 4 5 5 6 5 3 2 3 4 3 . 2 Tool/Special . | . . . . . . . . . . . . . Unused Backups 26 | . 4 1 . . 6 . 6 4 1 2 . 2 Power 1 | . . . . . . . . . . 1 . . Propulsion 3 | . . . . . 1 . 2 . . . . . Utility 13 | . 3 . . . 2 . 3 2 . 1 . 2 Weapon 9 | . 1 1 . . 3 . 1 2 1 . . . Tool/Special . | . . . . . . . . . . . . . Average Slot Usage (%) 94 | . 99 100 100 100 98 99 98 96 93 52 66 95 Engine 6 | . 14 14 14 14 2 . . 2 . . . 6 Core 3 | . . . . . 6 7 6 5 8 . . . Treads 18 | . 15 28 28 28 34 . . . . . . . Leg 2 | . 12 . . . . . . . . . . . Hover 2 | . . . . . . . 4 12 . 3 17 28 Flight 9 | . . . . . 1 30 26 21 35 29 15 5 Device 8 | . 12 . . . 9 11 13 10 13 3 5 10 Storage 9 | . 14 14 14 14 9 3 6 5 5 5 3 5 Processor 4 | . 1 14 14 14 6 . . . . . . . Hackware 5 | . . . . . 4 14 19 17 9 5 6 17 Protection 3 | . . . . . 5 15 6 5 9 . 1 5 Ballistic Gun 2 | . 1 . . . 5 9 6 4 1 . . . Ballistic Cannon 10 | . 22 27 14 14 8 . . . . . . . Special Melee Weapon 1 | . . . 13 14 . . . . . . . 4 Peak Build Rating 91 | 9 12 9 9 9 38 44 56 71 73 68 89 91 Average Rating 31 | 5 10 8 9 9 28 42 52 65 66 41 59 84 On Entrance 33 | . 9 9 9 9 9 36 41 56 67 62 38 87 Avg Prop Armor Cover (%) 7 | . . . . . . . 6 7 1 22 5 1 Naked Turns 3 | . . . . . . . . . . . . 3 Heaviest Build 43 | 13 33 32 32 32 40 23 24 33 40 35 43 43 Greatest Support 86 | 20 40 40 40 40 86 26 26 42 40 38 49 49 Greatest Overweight (x) 1 | . 1 . . . 1 . . 1 1 1 1 1 Average Overweight (x) . | . . . . . . . . . . . . . Largest Inventory Capacity 15 | 8 15 15 15 15 15 15 10 10 10 10 10 10 Average Capacity 12 | 7 11 15 15 15 15 6 10 10 10 10 8 9 Most Carried 15 | 8 15 15 15 15 15 10 10 10 10 10 10 10 Average Carried 12 | 6 10 14 15 14 14 6 9 9 9 9 7 9 Final Capacity 15 | 8 15 15 15 15 15 10 10 10 10 10 10 5 Final Carried 15 | 7 15 15 15 15 10 10 10 10 10 10 10 5 Class Distribution -------------------- 67% | Mutant 10% | Hacker-Sprinter 8% | Commander-Sprinter 6% | Scavenger-Mutant Dominant Class ---------------- Mutant | -10/Materials Mutant | -10/Mines Mutant | -10/Exiles Mutant | -9/Mines Mutant | -8/Materials Hacker-Sprinter | -7/Factory Hacker-Sprinter | -6/Factory Hacker-Mutant | -5/Factory Commander-Sprinter | -5/Extension Commander-Sprinter | -5/Cetus Scavenger-Mutant | -5/Archives Scavenger-Mutant | -5/Hub_04(d) Resources | -11 -10 -10 -10 -9 -8 -7 -6 -5 -5 -5 -5 -5 ----------- Run | Yrd Mat Min Exi Min Mat Fac Fac Fac Ext Cet Arc Hub Matter Collected 4584 | 337 784 259 . . 1691 50 108 98 776 174 287 20 Remotely . | . . . . . . . . . . . . . Salvage Created 5252 | 303 644 209 . . 2066 50 327 255 1039 6 334 19 Parts 304 | 35 64 17 . . 93 3 9 20 39 . 21 3 Haulers Intercepted 10 | . 2 . . . 5 1 1 1 . . . . Recyclers Shooed 5 | . 1 . . . 1 . . 1 2 . . . Parts Field Recycled . | . . . . . . . . . . . . . Retrieved Matter . | . . . . . . . . . . . . . Parts Self-Destructed . | . . . . . . . . . . . . . Prevented . | . . . . . . . . . . . . . Parts Restored . | . . . . . . . . . . . . . Kills | -11 -10 -10 -10 -9 -8 -7 -6 -5 -5 -5 -5 -5 ------- Run | Yrd Mat Min Exi Min Mat Fac Fac Fac Ext Cet Arc Hub Combat Hostiles Destroyed 87 | . 22 6 . . 35 . . 3 21 . . . Melee 7 | . . . . . . . . 2 5 . . . Guns 21 | . . . . . 19 . . . 2 . . . Cannons 43 | . 20 6 . . 16 . . 1 . . . . AOE 12 | . 2 . . . . . . . 10 . . . Classes Destroyed 15 | 3 6 . . . 3 . 1 1 1 . . . Worker 6 | 2 . . . . 3 . . 1 . . . . Builder 8 | . 4 . . . 2 . . 1 1 . . . Tunneler 12 | 9 1 1 . . 1 . . . . . . . Hauler 10 | . 2 . . . 5 1 1 1 . . . . Recycler 11 | 1 2 2 . . 4 . 1 . 1 . . . Mechanic 1 | . . . . . . . 1 . . . . . Operator 14 | . 1 . . . 1 . . 2 . . 9 1 Watcher 6 | . 1 . . . 1 . 1 . 2 1 . . Swarmer 29 | . 12 6 . . 3 . . . 8 . . . Grunt 44 | . 10 . . . 26 . . 2 6 . . . Brawler 1 | . . . . . 1 . . . . . . . Duelist 1 | . . . . . 1 . . . . . . . Sentry 7 | . . . . . 4 . . . 3 . . . Programmer 3 | . . . . . . . . 1 2 . . . Thug 1 | . . . . . . . . . 1 . . . Guerrilla 1 | . . . . . . . . . 1 . . . Best Kill Streak 8 | 4 6 4 . . 8 1 2 4 7 3 8 1 Combat Bots Only 7 | . 6 3 . . 5 . . 2 7 . . . Max Kills in Single Turn 3 | 1 3 1 . . 2 1 1 3 3 1 1 1 Gunslinging . | . . . . . . . . . . . . . Exploded 3 | . 2 . . . . . . . 3 . . . Melee 1 | . . . . . . . . 1 1 . . . Uniques/NPCs Destroyed . | . . . . . . . . . . . . . Combat | -11 -10 -10 -10 -9 -8 -7 -6 -5 -5 -5 -5 -5 -------- Run | Yrd Mat Min Exi Min Mat Fac Fac Fac Ext Cet Arc Hub Hostile Shots Fired 480 | . 56 12 . . 180 17 . 25 111 42 . 37 Missed 166 | . 25 2 . . 50 8 . 14 41 15 . 11 Hits 314 | . 31 10 . . 130 9 . 11 70 27 . 26 Melee 4 | . . . . . 1 . . . . . . 3 Projectile 310 | . 31 10 . . 129 9 . 11 70 27 . 23 AOE 4 | . . . . . . . . . . . . 4 Critical Strikes 20 | . . . . . 9 . . 1 4 4 . 2 Actively Blocked 2 | . . . . . . . . . 1 1 . . Damage Taken 5760 | . 302 77 . . 1883 102 . 232 1566 640 . 958 Core 1226 | . 63 8 . . 137 12 . 58 322 166 . 460 Absorbed by Shields 284 | . . . . . 154 . . . 29 101 . . Redirected to Shielding 209 | . . . . . 15 3 . 50 123 18 . . Regen/Repaired (Parts) 96 | . . . . . 96 . . . . . . . Core Remaining (%) 88 | 100 . . . 71 75 98 100 . . . . . Volleys Fired 392 | 33 103 13 . . 182 . . 8 36 17 . . Largest 2 | 2 2 2 . . 2 . . 1 2 1 . . Hottest 122 | 60 120 100 . . 122 . . 90 90 43 . . Shots Fired 655 | 62 153 24 . . 344 . . 9 46 17 . . Gun 326 | 62 44 . . . 176 . . 2 34 8 . . Cannon 271 | . 91 22 . . 149 . . 7 2 . . . Launcher 20 | . 1 . . . . . . . 10 9 . . Special 38 | . 17 2 . . 19 . . . . . . . Kinetic 498 | 33 130 22 . . 269 . . 2 34 8 . . Thermal 137 | 29 22 2 . . 75 . . 7 2 . . . Explosive 20 | . 1 . . . . . . . 10 9 . . Electromagnetic . | . . . . . . . . . . . . . Robot Hit Streak 21 | 12 9 6 . . 21 . . 2 4 4 . . Robot Miss Streak 6 | 4 4 2 . . 6 . . 2 3 1 . . Penetration Max 1 | . . . . . . . . . 1 . . . Secondary Targets . | . . . . . . . . . . . . . Shots Hit Robots 493 | 39 77 12 4 . 241 1 11 9 69 12 16 2 Core Hits 234 | 19 39 9 . . 91 1 5 8 33 21 7 1 Critical Kills 1 | . . . . . . . . . 1 . . . Critical Parts Destroyed 6 | . . . . . . . . . 6 . . . Critical Strikes 22 | . 4 . . . 8 . . . 10 . . . Burn 3 | . . . . . 3 . . . . . . . Blast 9 | . 4 . . . 5 . . . . . . . Smash 7 | . . . . . . . . . 7 . . . Sever 3 | . . . . . . . . . 3 . . . Melee Attacks 147 | . . . 4 . . 15 29 14 61 . 17 7 Impact 47 | . . . . . . . . 8 39 . . . Slashing 96 | . . . . . . 15 29 6 22 . 17 7 Piercing . | . . . . . . . . . . . . . Sneak Attacks 28 | . . . 4 . . 1 5 2 5 . 10 1 Combat Hostiles 1 | . . . . . . . . . 1 . . . Follow-up Attacks 6 | . . . . . . . . . 6 . . . Damage Inflicted 14668 | 396 1522 269 . . 4307 73 567 1027 4178 903 1288 138 Guns 3865 | 396 233 . . . 2345 . . 20 694 177 . . Cannons 3193 | . 1087 236 . . 1786 . . 84 . . . . Explosions 2693 | . 138 . . . 95 . . 462 1272 726 . . Melee 4739 | . . . . . . 73 567 461 2212 . 1288 138 Ramming 130 | . 40 33 . . 57 . . . . . . . Kinetic 5819 | 175 1286 236 . . 3231 . . 20 694 177 . . Thermal 1287 | 221 58 . . . 924 . . 84 . . . . Explosive 2598 | . 138 . . . . . . 462 1272 726 . . Electromagnetic 95 | . . . . . 95 . . . . . . . Impact 1917 | . . . . . . . . 393 1524 . . . Slashing 2822 | . . . . . . 73 567 68 688 . 1288 138 Piercing . | . . . . . . . . . . . . . Highest Corruption 6 | . . . . . . . . 3 6 2 3 1 Average Corruption 3 | . . . . . . . . 2 5 2 2 1 Corruption Purged 9 | . . . . . . . . . 4 . 5 . Corruption Blocked . | . . . . . . . . . . . . . Effects 32 | . . . . . . . . 3 22 5 2 . Message Errors 3 | . . . . . . . . . 1 2 . . Matter Fused 14 | . . . . . . . . 2 9 2 1 . Heat Flow Errors 2 | . . . . . . . . . 2 . . . Energy Discharges 4 | . . . . . . . . . 2 1 1 . Data Loss (minor) 3 | . . . . . . . . . 3 . . . Data Loss (major) 1 | . . . . . . . . . 1 . . . Misfires 1 | . . . . . . . . 1 . . . . Alerts 2 | . . . . . . . . . 2 . . . Weapon Failures 2 | . . . . . . . . . 2 . . . Overload Shots . | . . . . . . . . . . . . . Overflow Damage 1228 | . 8 . . . 14 . 43 58 723 1 381 . Projectiles 33 | . 8 . . . 14 . . 11 . . . . Explosions 59 | . . . . . . . . 9 49 1 . . Melee 1136 | . . . . . . . 43 38 674 . 381 . Knockbacks 41 | . 12 5 . . 17 . . 2 5 . . . Impact 10 | . 1 2 . . . . . 2 5 . . . Kinetic 30 | . 10 3 . . 17 . . . . . . . Secondary 1 | . 1 . . . . . . . . . . . Self-Inflicted Damage 117 | . . . . . 7 . . 37 44 29 . . Shots 5 | . . . . . 1 . . 1 2 1 . . Rammed 16 | . 4 3 . . 9 . . . . . . . Targets Rammed 23 | . 8 4 . . 11 . . . . . . . Kicked 4 | . 4 . . . . . . . . . . . Crushed 3 | . . 1 . . 2 . . . . . . . Highest Temperature 132 | 40 40 40 . . 57 4 . 100 132 . . 3 Average Temperature 14 | 21 13 11 . . 10 2 . 37 16 . . 3 Received Heat Transfer 1640 | . 96 . . . 1047 48 . 9 413 . . 27 Siege Activations . | . . . . . . . . . . . . . Martial Activations . | . . . . . . . . . . . . . Shielding Activations . | . . . . . . . . . . . . . Robots Disrupted . | . . . . . . . . . . . . . Combat Hostiles . | . . . . . . . . . . . . . Robots Corrupted 6 | . . . . . . . . . 6 . . . Combat Hostiles 4 | . . . . . . . . . 4 . . . Parts Fried 5 | . . . . . . . . . 5 . . . Impact Corruptions 18 | . . . . . . . . . 18 . . . Robots Melted . | . . . . . . . . . . . . . Combat Hostiles . | . . . . . . . . . . . . . Parts Melted 2 | . . . . . 2 . . . . . . . Heat Transferred 2636 | 500 125 . . . 1937 . . 74 . . . . Parts Sabotaged . | . . . . . . . . . . . . . Parts Stolen . | . . . . . . . . . . . . . Parts Stripped . | . . . . . . . . . . . . . Power Chain Reactions . | . . . . . . . . . . . . . Alert | -11 -10 -10 -10 -9 -8 -7 -6 -5 -5 -5 -5 -5 ------- Run | Yrd Mat Min Exi Min Mat Fac Fac Fac Ext Cet Arc Hub Maximum Alert Level 2 | . 1 . . . 2 1 . 1 2 2 1 2 Low Security (%) 59 | 100 59 100 . 100 49 . 100 82 59 . 8 41 Level 1 27 | . 40 . . . 27 100 . 17 25 25 91 27 Level 2 12 | . . . . . 23 . . . 15 74 . 30 Level 3 . | . . . . . . . . . . . . . Level 4 . | . . . . . . . . . . . . . Level 5 . | . . . . . . . . . . . . . High Security . | . . . . . . . . . . . . . Max Security . | . . . . . . . . . . . . . Peak Influence 684 | 10 329 92 . . 654 382 174 240 684 478 392 441 Initial 352 | . . 92 . . . 303 173 51 107 352 179 98 Average 191 | 1 168 26 . . 237 334 143 137 229 423 319 278 Influence Increases 5242 | 60 739 157 . . 1320 142 53 330 1342 326 303 470 Destroy 0b10 Robot/C 2480 | . 440 120 . . 780 . . 60 660 160 80 180 Destroy 0b10 Robot/NC 350 | 60 55 15 . . 90 5 20 20 20 5 45 15 Destroy Leader 362 | . 96 20 . . 184 2 4 12 34 . . 10 Allied During Kill 658 | . . . . . 23 . . . 327 16 125 167 Successful Hack 189 | . 43 . . . 26 33 . 37 45 . . 5 Select Force Hacks 120 | . 60 . . . 60 . . . . . . . Disable Machine 210 | . 15 . . . 15 15 15 60 . 15 45 30 Destroy Structure 498 | . 30 2 . . 22 12 14 96 196 100 8 18 Partial Spotted 90 | . . . . . . 15 . . 60 . . 15 Lose Combat Pursuer 285 | . . . . . 120 60 . 45 . 30 . 30 Influence Decreases 4874 | 60 501 395 . . 653 454 302 215 932 509 469 384 Entered New Map 1593 | . . 146 . . . 364 182 55 114 279 269 184 Time Decay 2571 | 60 501 249 . . 583 80 120 160 398 170 180 70 Lost Part 220 | . . . . . 30 . . . 80 60 . 50 Lost Ally 490 | . . . . . 40 10 . . 340 . 20 80 Squads Dispatched 19 | . 5 . . . 7 1 1 1 2 . . 2 Investigation 7 | . 3 . . . 3 1 . . . . . . Extermination 1 | . . . . . . . 1 . . . . . Reinforcement 11 | . 2 . . . 4 . . 1 2 . . 2 Assault . | . . . . . . . . . . . . . Garrison . | . . . . . . . . . . . . . Intercept . | . . . . . . . . . . . . . Searches Triggered . | . . . . . . . . . . . . . Construction Impeded 3 | . . . . . 1 . . 1 1 . . . Haulers Reinforced . | . . . . . . . . . . . . . Active Scanning Responses . | . . . . . . . . . . . . . Cargo Convoy Interrupts . | . . . . . . . . . . . . . Stealth | -11 -10 -10 -10 -9 -8 -7 -6 -5 -5 -5 -5 -5 --------- Run | Yrd Mat Min Exi Min Mat Fac Fac Fac Ext Cet Arc Hub Distress Signals 10 | . . . . . 1 3 . 1 3 2 . . Communications Jammed . | . . . . . . . . . . . . . Distress Signals . | . . . . . . . . . . . . . Times Spotted 194 | . 31 6 . . 56 18 1 13 37 7 9 16 Peak Tracking Total 10 | . 5 3 . . 6 10 1 7 7 5 1 5 Tactical Retreats 13 | . . . . . 7 2 . 1 . 2 . 1 ECM-based Alert Blocks 5 | . . . . . . 5 . . . . . . Traps | -11 -10 -10 -10 -9 -8 -7 -6 -5 -5 -5 -5 -5 ------- Run | Yrd Mat Min Exi Min Mat Fac Fac Fac Ext Cet Arc Hub Traps Triggered 9 | . 2 . . . 1 . 1 . 5 . . . Indirectly . | . . . . . . . . . . . . . Trap Hack Attempts . | . . . . . . . . . . . . . Triggered . | . . . . . . . . . . . . . Disarmed . | . . . . . . . . . . . . . Reprogrammed . | . . . . . . . . . . . . . Reused . | . . . . . . . . . . . . . Traps Extracted . | . . . . . . . . . . . . . Installed 4 | . . 4 . . . . . . . . . . Triggered . | . . . . . . . . . . . . . Machines | -11 -10 -10 -10 -9 -8 -7 -6 -5 -5 -5 -5 -5 ---------- Run | Yrd Mat Min Exi Min Mat Fac Fac Fac Ext Cet Arc Hub Machines Disabled 15 | . 1 . . . 1 1 1 4 . 2 3 2 Max in Single Turn 2 | . 1 . . . 1 1 1 2 . 1 . 1 Garrison Access 1 | . . . . . . . 1 . . . . . Network Hub 1 | . . . . . . . . . . . . 1 Machines Repaired . | . . . . . . . . . . . . . Machines Dismantled 1 | . . . . . . . . . . 1 . . Machines Sabotaged . | . . . . . . . . . . . . . Overloaded Fab Kills . | . . . . . . . . . . . . . Hacking | -11 -10 -10 -10 -9 -8 -7 -6 -5 -5 -5 -5 -5 --------- Run | Yrd Mat Min Exi Min Mat Fac Fac Fac Ext Cet Arc Hub Machines Accessed 47 | . 7 . 1 . 11 5 3 6 10 1 . 3 Terminals 33 | . 5 . . . 7 3 . 4 10 1 . 3 Fabricators 3 | . . . . . . 1 2 . . . . . Repair Stations 2 | . . . . . 1 . . 1 . . . . Recycling Units 5 | . 2 . . . 2 1 . . . . . . Scanalyzers 2 | . . . . . 1 . . 1 . . . . Garrison Access 1 | . . . . . . . 1 . . . . . Total Hacks 147 | . 17 . 1 . 35 15 7 30 34 1 . 7 Successful 97 | . 9 . 1 . 26 8 4 25 19 . . 5 Failed 48 | . 8 . . . 8 7 3 4 15 1 . 2 Catastrophic 8 | . 1 . . . . 1 . . 4 1 . 1 Database Lockouts 2 | . . . . . 1 . . 1 . . . . Manual 89 | . 15 . . . 18 10 5 17 16 1 . 7 Terminals 114 | . 15 . . . 23 10 . 24 34 1 . 7 Fabricators 9 | . . . . . . 3 6 . . . . . Repair Stations 3 | . . . . . 2 . . 1 . . . . Recycling Units 6 | . 2 . . . 2 2 . . . . . . Scanalyzers 13 | . . . . . 8 . . 5 . . . . Garrison Access 1 | . . . . . . . 1 . . . . . Terminal Hacks 33 | . 2 . 1 . 6 3 . 10 10 . . 1 Record 1 | . . . 1 . . . . . . . . . Part Schematic 1 | . . . . . . . . 1 . . . . Robot Analysis 1 | . 1 . . . . . . . . . . . Prototype ID Bank 4 | . . . . . 2 . . 1 1 . . . Open Door 6 | . . . . . . . . 1 5 . . . Level Access Points 1 | . . . . . . . . 1 . . . . Branch Access Points 3 | . . . . . 1 1 . 1 . . . . Machine Index 1 | . . . . . . . . 1 . . . . Terminal Index 5 | . . . . . 1 1 . 1 1 . . 1 Alert Level 2 | . . . . . 1 . . . 1 . . . Locate Traps 2 | . 1 . . . . . . 1 . . . . Patrol Status 2 | . . . . . 1 . . . 1 . . . Hauler Manifests 1 | . . . . . . . . 1 . . . . Registered Components 2 | . . . . . . 1 . 1 . . . . Zone Layout 1 | . . . . . . . . . 1 . . . Fabricator Hacks 1 | . . . . . . . 1 . . . . . Network Status 1 | . . . . . . . 1 . . . . . Repair Station Hacks 2 | . . . . . 2 . . . . . . . Scan Component 1 | . . . . . 1 . . . . . . . Repair 1 | . . . . . 1 . . . . . . . Recycling Unit Hacks . | . . . . . . . . . . . . . Scanalyzer 11 | . . . . . 7 . . 4 . . . . Insert Component 4 | . . . . . 3 . . 1 . . . . Analyze 5 | . . . . . 3 . . 2 . . . . Retrieve Study 2 | . . . . . 1 . . 1 . . . . Garrison Access Hacks 1 | . . . . . . . 1 . . . . . Seal Access 1 | . . . . . . . 1 . . . . . Unauthorized Hacks 49 | . 7 . . . 11 5 2 11 9 . . 4 Terminals 41 | . 5 . . . 9 4 . 10 9 . . 4 Track 6 | . . . . . . 1 . 1 2 . . 2 Assimilate 4 | . . . . . 1 1 . 2 . . . . Botnet 9 | . 1 . . . 2 1 . 2 1 . . 2 Disrupt 2 | . . . . . . . . 1 1 . . . Operators 5 | . 1 . . . 1 1 . 1 1 . . . Skim 15 | . 3 . . . 5 . . 3 4 . . . Fabricators 2 | . . . . . . . 2 . . . . . Liberate 1 | . . . . . . . 1 . . . . . Haulers 1 | . . . . . . . 1 . . . . . Repair Stations 1 | . . . . . . . . 1 . . . . Mechanics 1 | . . . . . . . . 1 . . . . Recycling Units 5 | . 2 . . . 2 1 . . . . . . Recyclers 1 | . . . . . . 1 . . . . . . Tunnel 4 | . 2 . . . 2 . . . . . . . Scanalyzers . | . . . . . . . . . . . . . Garrison Access . | . . . . . . . . . . . . . Data Cores Recovered 1 | . . . . . . . . . . . . 1 Used . | . . . . . . . . . . . . . Hacking Detections 32 | . 5 . . . 8 4 2 3 5 2 . 3 Full Trace Events 2 | . 1 . . . . 1 . . . . . . Feedback Events . | . . . . . . . . . . . . . Feedback Blocked . | . . . . . . . . . . . . . Robot Schematics Acquired . | . . . . . . . . . . . . . Robots Built . | . . . . . . . . . . . . . Authchips . | . . . . . . . . . . . . . Time . | . . . . . . . . . . . . . Total Robot Build Rating . | . . . . . . . . . . . . . Part Schematics Acquired 5 | . . . . . 3 . . 2 . . . . Parts Built . | . . . . . . . . . . . . . Authchips . | . . . . . . . . . . . . . Time . | . . . . . . . . . . . . . Total Part Build Rating . | . . . . . . . . . . . . . Part Studies Acquired 2 | . . . . . 1 . . 1 . . . . Parts Repaired 1 | . . . . . 1 . . . . . . . Time 26 | . . . . . 26 . . . . . . . Parts Recycled . | . . . . . . . . . . . . . Recycled Matter . | . . . . . . . . . . . . . Retrieved Matter . | . . . . . . . . . . . . . Retrieved Components . | . . . . . . . . . . . . . Parts Scanalyzed 4 | . . . . . 3 . . 1 . . . . Part Schematics Acquired 4 | . . . . . 3 . . 1 . . . . Parts Damaged . | . . . . . . . . . . . . . Bothacking | -11 -10 -10 -10 -9 -8 -7 -6 -5 -5 -5 -5 -5 ------------ Run | Yrd Mat Min Exi Min Mat Fac Fac Fac Ext Cet Arc Hub Used RIF Installer . | . . . . . . . . . . . . . Robots Hacked 4 | . . . 4 . . . . . . . . . Non-combat 3 | . . . 3 . . . . . . . . . Combat 1 | . . . 1 . . . . . . . . . Robot Hacks Applied 4 | . . . 4 . . . . . . . . . parse_system 4 | . . . 4 . . . . . . . . . Relay Couplers Released . | . . . . . . . . . . . . . Fabnet Peak Effective % . | . . . . . . . . . . . . . Robots Rewired 14 | . . . . . . . . . 14 . . . Allies Hacked . | . . . . . . . . . . . . . Hacks Repelled . | . . . . . . . . . . . . . Allies | -11 -10 -10 -10 -9 -8 -7 -6 -5 -5 -5 -5 -5 -------- Run | Yrd Mat Min Exi Min Mat Fac Fac Fac Ext Cet Arc Hub Total Allies 30 | . . 3 . . . 1 . 2 19 5 . . Largest Group 14 | . . 3 3 3 3 1 . 2 14 6 6 4 Highest-Rated Group 639 | . . 40 40 40 40 26 . 36 421 639 615 384 Highest-Rated Ally 159 | . . 16 16 16 16 26 . 26 159 159 135 96 Total Orders 3 | . . . . . . . . 1 . 2 . . STAY 2 | . . . . . . . . 1 . 1 . . FOLLOW 1 | . . . . . . . . . . 1 . . Ally Attacks 279 | . . . . . 51 . . . 121 32 44 31 Total Damage 6275 | . . . . . 495 . . . 2209 1030 1452 1089 Kills 41 | . . . . . 5 . . . 13 8 4 11 Allies Corrupted . | . . . . . . . . . . . . . Allies Melted 1 | . . . . . . . . . 1 . . . Intel | -11 -10 -10 -10 -9 -8 -7 -6 -5 -5 -5 -5 -5 ------- Run | Yrd Mat Min Exi Min Mat Fac Fac Fac Ext Cet Arc Hub Active Infowar (turns) 3815 | 5 1272 . . . 1376 160 248 245 207 . 146 156 Sensors 804 | . . . . . . . 96 221 207 . 146 134 Terrain 1277 | 5 1272 . . . . . . . . . . . Seismic 1688 | . . . . . 1376 160 152 . . . . . Cloaking 238 | . . . . . . . . . . . 82 156 ECM 68 | . . . . . . 44 . 24 . . . . Robot Analysis Total 1 | . 1 . . . . . . . . . . . Derelict Logs Recovered 2 | . . 1 . 1 . . . . . . . . Drone Launches . | . . . . . . . . . . . . . Drone Recoveries . | . . . . . . . . . . . . . Exploration | -11 -10 -10 -10 -9 -8 -7 -6 -5 -5 -5 -5 -5 ------------- Run | Yrd Mat Min Exi Min Mat Fac Fac Fac Ext Cet Arc Hub Turns Passed 8046 | 264 1467 901 275 235 2342 166 248 326 947 352 364 159 Spaces Moved 5758 | 122 750 527 166 145 1016 387 534 543 866 194 325 183 Core 17 | 14 . . . . . . . . . . . 3 Treads 2210 | . 396 527 166 145 970 . . . . . 6 . Legs 462 | 108 354 . . . . . . . . . . . Wheels . | . . . . . . . . . . . . . Hover 596 | . . . . . . . . 183 . . 233 180 Flight 2473 | . . . . . 46 387 534 360 866 194 86 . Fastest Speed 11 | 50 120 160 160 160 98 26 26 11 14 21 23 40 Average Speed 85 | 111 142 160 160 160 148 26 26 34 20 30 45 46 Slowest Speed 240 | 120 190 160 160 160 160 26 26 116 87 97 240 111 Overloaded Moves 92 | . . . . . . . . 2 90 . . . Propulsion Burnouts . | . . . . . . . . . . . . . Robots Hopped 13 | . . . . . . 4 1 . 8 . . . Potential Cave-ins . | . . . . . . . . . . . . . Cave-ins Triggered . | . . . . . . . . . . . . . Exploration Rate (%) 52 | 5 98 98 60 36 73 18 13 14 87 66 97 20 Regions Visited 12 Branch Regions 7 Pre-discovered Areas 8 | . 2 . 1 1 4 . . . . . . . Known Exits Taken 4 | . . . . 1 1 . . 1 1 . . . Unknown Exits Taken 8 | 1 1 1 1 . . 1 1 . . 1 1 . Scrap Searched 2 | . . 2 . . . . . . . . . . Spaces Dug 99 | . 25 1 . . 13 12 14 6 24 . . 4 Terrain Destroyed 378 | . 27 2 . . 18 12 14 47 141 113 . 4 Melee 38 | . . . . . . 12 14 6 2 . . 4 Projectile 43 | . 16 2 . . 18 . . 3 2 2 . . AOE 297 | . 11 . . . . . . 38 137 111 . . Terrain Rammed . | . . . . . . . . . . . . . Walls Destroyed . | . . . . . . . . . . . . . Machines Disabled . | . . . . . . . . . . . . . Actions | -11 -10 -10 -10 -9 -8 -7 -6 -5 -5 -5 -5 -5 --------- Run | Yrd Mat Min Exi Min Mat Fac Fac Fac Ext Cet Arc Hub Total 7853 | 191 952 554 173 148 1459 425 600 645 1482 461 517 246 Wait 937 | 21 25 3 3 1 108 3 . 46 323 229 125 50 Move 5720 | 121 749 526 165 144 1015 378 531 542 849 193 324 183 Hop 13 | . . . . . . 4 1 . 8 . . . Pick Up 90 | 9 15 1 . 1 25 7 9 5 6 3 8 1 Fast Attach 60 | 5 5 . . . 14 3 3 4 7 1 16 2 Attach 30 | 2 . . . . 8 3 1 1 6 3 5 1 Detach 17 | . 1 . . . 3 . . 1 4 2 6 . Swap 132 | . 32 2 1 1 51 4 1 16 21 1 2 . Drop 114 | . 14 1 . 1 42 8 10 8 10 4 14 2 Fire 392 | 33 103 13 . . 182 . . 8 36 17 . . Melee 141 | . . . 4 . . 15 29 14 55 . 17 7 Ram . | . . . . . . . . . . . . . Kick 4 | . 4 . . . . . . . . . . . Crush 19 | . 4 4 . . 11 . . . . . . . Escape Stasis 90 | . . . . . . . 15 . 75 . . . Rewire 82 | . . . . . . . . . 82 . . . Trap 4 | . . 4 . . . . . . . . . . Miscellaneous 8 | . . . . . . . . . . 8 . . Route ------- -11/Scrapyard -10/Materials (discovered 5 exits: [*Mat x3] / [*Min x2]) -10/Mines (discovered 4 exits: [*Mat x2] / *Exi / [*Sub]) -10/Exiles -9/Mines -8/Materials (discovered 3 exits: *Fac x3) -7/Factory (discovered 5 exits: *Fac / Sto x2 / Low x2) -6/Factory -5/Factory (discovered 8 exits: Fac x4 / Upp x2 / *Ext x2) -5/Extension (discovered 2 exits: *Fac / *Cet) -5/Cetus (discovered 2 exits: *Fac / [*Arc]) -5/Archives (discovered 3 exits: *Fac / *Hub x2) -5/Hub_04(d) History --------- Turn | Location | Event 9 | -11/Scrapyard | Discovered new exit (range 15) 265 | -11/Scrapyard | Entered Materials 317 | -10/Materials | Build established: Mutant 414 | -10/Materials | Discovered new exit (range 16) 531 | -10/Materials | Discovered new exit (range 9) 606 | -10/Materials | Discovered new exit (range 16) 1111 | -10/Materials | Discovered new exit (range 13) 1607 | -10/Materials | Discovered new exit (range 12) 1732 | -10/Materials | Entered Mines 1764 | -10/Mines | Discovered new exit (range 9) 1887 | -10/Mines | Learned Materials stockpile data 2157 | -10/Mines | Assisted by bots powering up and referring to "LRC-V3" 2179 | -10/Mines | Discovered new exit (range 9) 2267 | -10/Mines | Found a hidden stash of uninstalled traps 2450 | -10/Mines | Discovered new exit (range 15) 2623 | -10/Mines | Deemed a non-threat by the Exiles lab entrance 2625 | -10/Mines | Discovered new exit (range 5) 2633 | -10/Mines | Entered Exiles 2633 | -10/Exiles | Accompanied by 3 allies 2673 | -10/Exiles | Met 8R-AWN 2700 | -10/Exiles | Met EX-HEX 2755 | -10/Exiles | Met EX-BIN 2801 | -10/Exiles | Met EX-DEC 2844 | -10/Exiles | Learned location of Zion (-6) 2892 | -10/Exiles | Discovered new exit (range 10) 2908 | -10/Exiles | Entered Mines 2908 | -9/Mines | Accompanied by 3 allies 3006 | -9/Mines | Identified exit to Materials 3013 | -9/Mines | Learned location of Storage (-7) 3135 | -9/Mines | Received a Rocket Launcher from a helpful Derelict 3143 | -9/Mines | Entered Materials 3143 | -8/Materials | Accompanied by 3 allies 3143 | -8/Materials | Evolved 4 slots: Propulsion x2, Utility x2 3941 | -8/Materials | Learned Storage stockpile data 3960 | -8/Materials | Identified exit to Factory 3967 | -8/Materials | Learned location of 1 exit from Extension 3968 | -8/Materials | Learned Factory trap positions 3969 | -8/Materials | Learned location of 2 exits from Lower Caves 4079 | -8/Materials | Repaired Lgt. Cannon 4480 | -8/Materials | Central database locked down 5485 | -8/Materials | Entered Factory 5485 | -7/Factory | Evolved 2 slots: Utility x2 5486 | -7/Factory | Loaded intel: 100 trap records 5516 | -7/Factory | Identified exit to Storage 5516 | -7/Factory | Identified exit to Lower Caves 5638 | -7/Factory | Discovered new exit (range 10) 5651 | -7/Factory | Entered another Factory area 5651 | -6/Factory | Evolved 2 slots: Propulsion x1, Utility x1 5708 | -6/Factory | Discovered new exit (range 9) 5780 | -6/Factory | Spotted B-75 Beast 5899 | -6/Factory | Entered another Factory area 5899 | -5/Factory | Evolved 2 slots: Power x1, Propulsion x1 5904 | -5/Factory | Identified exit to Factory 5904 | -5/Factory | Identified exit to Upper Caves 5904 | -5/Factory | Identified exit to Extension 5944 | -5/Factory | Central database locked down 5957 | -5/Factory | Build established: Hacker-Sprinter 6016 | -5/Factory | P-70 Sage assimilated allied Technician 6a 6225 | -5/Factory | Entered Extension 6226 | -5/Extension | Identified exit to Cetus 6328 | -5/Extension | Lost 3 parts (1p2u) 6502 | -5/Extension | Rescued a captive Derelict 6506 | -5/Extension | Rescued a captive Derelict 6532 | -5/Extension | Rescued a captive Derelict 6922 | -5/Extension | Build established: Commander-Sprinter 6938 | -5/Extension | Spotted B-75 Beast 6970 | -5/Extension | Spotted B-75 Beast 6975 | -5/Extension | Allies destroyed B-75 Beast 7006 | -5/Extension | Lost 6 allies 7050 | -5/Extension | Disrupted transfer network 7055 | -5/Extension | Rescued a captive Derelict 7055 | -5/Extension | Rescued a captive Derelict 7063 | -5/Extension | Destroyed 7 combat bots 7134 | -5/Extension | Lost 5 allies 7134 | -5/Extension | Rescued a captive Derelict 7137 | -5/Extension | Rescued a captive Derelict 7151 | -5/Extension | Rescued A7 7152 | -5/Extension | Discovered exit to Factory (range 10) 7172 | -5/Extension | Entered Cetus 7172 | -5/Cetus | Accompanied by 1 ally (A7) 7177 | -5/Cetus | Acquired a Cetus Manufacturing Module code from A7 7187 | -5/Cetus | Spotted Cetus Guard 7187 | -5/Cetus | Spotted Cetus Guard 7194 | -5/Cetus | Allies destroyed Cetus Guard 7196 | -5/Cetus | Spotted Cetus Guard 7207 | -5/Cetus | Allies destroyed Cetus Guard 7211 | -5/Cetus | Core integrity fell below 50% 7217 | -5/Cetus | Allies destroyed Cetus Guard 7218 | -5/Cetus | Spotted Cetus Guard 7226 | -5/Cetus | Allies destroyed Cetus Guard 7241 | -5/Cetus | Started Cetus Manufacturing Module 7255 | -5/Cetus | Lost 6 parts (1p1n3u1w) 7266 | -5/Cetus | Manufactured an Enhanced Grunt 7273 | -5/Cetus | Escorted A7 to Cetus Mainframe 7291 | -5/Cetus | Manufactured an Enhanced Grunt 7316 | -5/Cetus | Manufactured an Enhanced Grunt 7341 | -5/Cetus | Manufactured an Enhanced Grunt 7366 | -5/Cetus | Manufactured an Enhanced Grunt 7383 | -5/Cetus | Discovered new exit (range 16) 7397 | -5/Cetus | Spotted Cetus Guard 7397 | -5/Cetus | Spotted Cetus Guard 7447 | -5/Cetus | Spotted Cetus Guard 7462 | -5/Cetus | Discovered exit to Factory (range 15) 7469 | -5/Cetus | Met Revision 17 7524 | -5/Cetus | Entered Archives 7524 | -5/Archives | Accompanied by 6 allies (A7) 7529 | -5/Archives | Received a hacking code to weaken MAIN.C 7630 | -5/Archives | Discovered exit to Factory (range 13) 7657 | -5/Archives | Discovered new exit (range 16) 7694 | -5/Archives | Discovered new exit (range 15) 7888 | -5/Archives | Entered Hub_04(d) 7888 | -5/Hub_04(d) | Accompanied by 4 allies 7980 | -5/Hub_04(d) | Build established: Scavenger-Mutant 8034 | -5/Hub_04(d) | Lost 3 allies 8037 | -5/Hub_04(d) | Network Hub disabled 8041 | -5/Hub_04(d) | Core integrity fell below 20% 8044 | -5/Hub_04(d) | Released all parts (12) 8047 | -5/Hub_04(d) | Destroyed by H-71 Marshal with Heavy Mass Driver Last Messages --------------- 08041_ Knocked back. 08042_ Slug penetrates Control Node. 08043_ The unstable cave ceiling collapses. 08044_ Gravmag System+ destroyed. 08044_ Released Lgt. Angular Momentum Engine. 08044_ Released Ripper. 08044_ Released Imp. Hacking Suite. 08044_ Released Gravmag System+. 08044_ Released Cld. VTOL Module. 08044_ Released Linear Gravjet. 08044_ Released Med. Storage Unit. 08044_ Released Centrium Medium Armor Plating. 08044_ Released Cloaking Device. 08044_ Released Imp. System Shield. 08044_ Released Imp. Hacking Suite. 08044_ Released Lgt. Angular Momentum Engine. 08045_ Acquired Ripper. 08045_ Slug penetrates Control Node. 08045_ Penetrated by Slug. 08045_ Ripper destroyed. Map ----- +----------------------------------------------------+ | | | | | | | | | | | | | | | ?????????????????????????????????????????????????? | | ?????????????????????????????????????????????????? | | ?????????????????????????????????????????????????? | | ?????????????????????????????????????????????????? | | ?????????????????????????????????????????????????? | | ?????????????????????????????????????????????????? | | ?????????????????????????????????????????????????? | | ?????????????????????????????????????????????????? | | ?????????????????????????????????????????????????? | | ?????????????????????????????????????????????????? | | ????????????????????????##############???????????? | | ????????????????????????#! ! ! #???????????? | | ????????????????????????#!= #???????????? | | ????????????????????????#!*% "" #???????????? | | ????????????????????????#!c! " ##??????????? | | ???????????????????????##cc=! " #??????????? | | ???????????????????????#= =! ############ | | ???????????????????????##!=! | | ??????????????????????###@* # | | ???##################### % ;""""""""" | | ???# # # " | | ???# # ## # " | | ???# """ # ##% ! " | | ???# " # ##;;;;;;;## # " | | ???# """ !# =!"; ; ;!%%* " | | #### ! # ! "% **% " | | ######/##* *#== !%[= " | | " +% A!!%/%== [ #!! ] !"## " | | Tk#####%=##! % %=%* # h "# " | | " #??## ##% [ * # = "# " | | R #???# ## + k H T# " | | " #???# ## = # " "" "#### """"""""" | | " #???# ############### """ "#??" " | | " ##### #????????????# """" "#??" = " | | +^^^^^ ^+????????????/ """" #??=!*!%=# ##### | | ### #??????????? # ? = ?%"$/ * ####???? | | #?# #?????????? ?# ??? ##""%= #??????? | | #?# #????????????#=#??##+###?#" #??????? | | #?# [#????????????#%??????????#" #??????? | | #?# %#????????????#%??????????#" #??????? | | ? =#?????????????%??????????#" "??????? | | ? % ????????????????????????" ????????? | | ? ########????????????????????????????????????? | +----------------------------------------------------+ Best States ------------- Heat Dissipation 59 Energy Generation 43 Energy Capacity 590 Matter Stores 300 Matter Capacity 300 Sight Range 16 Robot Scan Range 16 Terrain Scan Range 16 Terrain Scan Density 10 ECM Strength 1 Cloak Strength 2 Additional Mass Support 6 Armor Coverage 225 Propulsion Shielding 66 Utility Shielding 66 Evasion (%) 66 Targeting Accuracy 6 Recoil Reduction 4 Offensive Hacking 24 Defensive Hacking 12 Item Schematics ----------------- Imp. VTOL Module | -8/Materials | Scanalyzed Adv. Treads | -8/Materials | Scanalyzed Imp. Light Armor Plating | -8/Materials | Scanalyzed Imp. Utility Shielding | -5/Factory | Scanalyzed Electron Diverter | -5/Factory | Hacked Robot Schematics ------------------ None Fabricated ------------ Nothing Repaired ---------- Lgt. Cannon | 20% | -8/Materials Studied --------- Lgt. Deuterium Engine | -8/Materials | Hacked Gravmag System | -5/Factory | Hacked Alien Tech Used ----------------- None Achievements -------------- None Challenges ------------ None Game ------ Seed VariableDeepShockpuncher Manual? 0 Play Time 02:09:57 Cumulative 599.2 hours Start 2025.12.04 @ 02:23:54 End 2025.12.11 @ 23:39:31 Sessions 16 Manual Loads 0 Difficulty Rogue Special Mode None Game No. 226 Rogue 226 Adventurer 0 Explorer 0 Win Type - Total 24 Types 13/1/5/2/0/1/1/1/0/0 Lore% 92 Gallery% 86 Achievement% 66 Wizard Run 0 Options --------- Layout 0 ASCII 0 Keyboard 1 Movement Numpad Keybinds 0 Fullscreen 2 Font 18/SmallcapsGlow Map View 76x50 Zoom Use 0% Tactical HUD 1 Map Filters NONE Filters NONE Steam 1 RUN: 0a4f99be-ba26-4adb-8ec7-b1c50b56850c